[Event "Titled Tuesday Blitz April 05 Late 2022"]
[White "Morris-Suzuki, Sophie"]
[Black "Jarocka, Liwia"]
[WhiteFideId "30922615"]
[BlackFideId "21807558"]
[WhiteElo "2510"]
[BlackElo "1896"]
[Result "1-0"]
[Round "07"]
[TimeControl "180+1"]
[Date "2022.04.06"]
[WhiteClock "0:00:15"]
[BlackClock "0:00:19"]

1. d4 {[%clk 0:03:00]}  Nf6 {[%clk 0:02:52]} 2. c4 {[%clk 0:03:01]}  e6 {[%clk 0:02:51]} 3. Nc3 {[%clk 0:03:01]}  Bb4 {[%clk 0:02:51]} 4. e3 {[%clk 0:03:02]}  O-O {[%clk 0:02:50]} 5. a3 {[%clk 0:03:02]}  Bxc3+ {[%clk 0:02:49]} 6. bxc3 {[%clk 0:03:03]}  d5 {[%clk 0:02:49]} 7. Bd3 {[%clk 0:03:03]}  c5 {[%clk 0:02:47]} 8. Ne2 {[%clk 0:03:03]}  dxc4 {[%clk 0:02:47]} 9. Bxc4 {[%clk 0:03:03]}  b6 {[%clk 0:02:48]} 10. O-O {[%clk 0:03:03]}  Bb7 {[%clk 0:02:48]} 11. Bb2 {[%clk 0:03:00]}  Nbd7 {[%clk 0:02:48]} 12. a4 {[%clk 0:02:59]}  Rc8 {[%clk 0:02:48]} 13. Bd3 {[%clk 0:02:59]}  e5 {[%clk 0:02:47]} 14. a5 {[%clk 0:02:53]}  Re8 {[%clk 0:02:43]} 15. Ng3 {[%clk 0:02:43]}  c4 {[%clk 0:02:18]} 16. Bc2 {[%clk 0:02:41]}  b5 {[%clk 0:02:18]} 17. Nf5 {[%clk 0:02:39]}  Nf8 {[%clk 0:02:11]} 18. Ba3 {[%clk 0:02:32]}  Re6 {[%clk 0:01:16]} 19. a6 {[%clk 0:01:59]}  Ba8 {[%clk 0:00:48]} 20. Bc5 {[%clk 0:01:20]}  g6 {[%clk 0:00:47]} 21. Ng3 {[%clk 0:00:43]}  N8d7 {[%clk 0:00:46]} 22. Bxa7 {[%clk 0:00:39]}  Qc7 {[%clk 0:00:46]} 23. Bc5 {[%clk 0:00:33]}  Nxc5 {[%clk 0:00:46]} 24. dxc5 {[%clk 0:00:34]}  Qxc5 {[%clk 0:00:46]} 25. Ra5 {[%clk 0:00:25]}  Qc6 {[%clk 0:00:46]} 26. e4 {[%clk 0:00:21]}  Qb6 {[%clk 0:00:46]} 27. Qa1 {[%clk 0:00:20]}  Rc7 {[%clk 0:00:38]} 28. a7 {[%clk 0:00:17]}  Ree7 {[%clk 0:00:37]} 29. Ra6 {[%clk 0:00:16]}  Qc5 {[%clk 0:00:29]} 30. Rxf6 {[%clk 0:00:16]}  Rxa7 {[%clk 0:00:29]} 31. Qc1 {[%clk 0:00:16]}  Kg7 {[%clk 0:00:26]} 32. Rf3 {[%clk 0:00:16]}  Ra2 {[%clk 0:00:24]} 33. Bb1 {[%clk 0:00:15]}  Raa7 {[%clk 0:00:21]} 34. Qg5 {[%clk 0:00:15]}  Qd6 {[%clk 0:00:19]} 35. Nf5+ {[%clk 0:00:15]} 1-0


[Site "https://www.chess.com"]

[Event "Titled Tuesday Blitz April 05 Late 2022"]
[White "Novikova, Galina"]
[Black "Ardila, Oscar Humberto"]
[WhiteFideId "4157095"]
[BlackFideId "4404742"]
[WhiteElo "1863"]
[BlackElo "1983"]
[Result "1-0"]
[Round "07"]
[TimeControl "180+1"]
[Date "2022.04.06"]
[WhiteClock "0:00:07"]
[BlackClock "0:00:01"]

1. e4 {[%clk 0:03:00]}  e5 {[%clk 0:02:59]} 2. Nf3 {[%clk 0:03:00]}  Nf6 {[%clk 0:03:00]} 3. Nxe5 {[%clk 0:02:59]}  d6 {[%clk 0:03:00]} 4. Nc4 {[%clk 0:02:58]}  Nxe4 {[%clk 0:02:59]} 5. Qe2 {[%clk 0:02:57]}  Qe7 {[%clk 0:02:59]} 6. Ne3 {[%clk 0:02:56]}  Nf6 {[%clk 0:02:56]} 7. d4 {[%clk 0:02:51]}  g6 {[%clk 0:02:48]} 8. Nc3 {[%clk 0:02:30]}  c6 {[%clk 0:02:45]} 9. Bd2 {[%clk 0:02:30]}  Bg7 {[%clk 0:02:44]} 10. O-O-O {[%clk 0:02:29]}  O-O {[%clk 0:02:45]} 11. g4 {[%clk 0:02:14]}  d5 {[%clk 0:02:43]} 12. f3 {[%clk 0:02:08]}  Re8 {[%clk 0:02:29]} 13. h4 {[%clk 0:02:07]}  h5 {[%clk 0:02:27]} 14. g5 {[%clk 0:01:49]}  Nh7 {[%clk 0:02:25]} 15. Qd3 {[%clk 0:01:31]}  Nd7 {[%clk 0:02:17]} 16. Bh3 {[%clk 0:01:30]}  b5 {[%clk 0:02:14]} 17. Rde1 {[%clk 0:01:29]}  Qf8 {[%clk 0:02:04]} 18. f4 {[%clk 0:01:20]}  Nb6 {[%clk 0:02:03]} 19. f5 {[%clk 0:01:13]}  gxf5 {[%clk 0:01:53]} 20. Bxf5 {[%clk 0:01:13]}  Bxf5 {[%clk 0:01:52]} 21. Nxf5 {[%clk 0:01:13]}  Nc4 {[%clk 0:01:42]} 22. Bf4 {[%clk 0:01:08]}  Qb4 {[%clk 0:01:39]} 23. Rxe8+ {[%clk 0:00:58]}  Rxe8 {[%clk 0:01:38]} 24. Nd1 {[%clk 0:00:59]}  Nf8 {[%clk 0:01:16]} 25. b3 {[%clk 0:00:51]}  Qa3+ {[%clk 0:01:11]} 26. Kb1 {[%clk 0:00:49]}  Nb6 {[%clk 0:00:44]} 27. Bc1 {[%clk 0:00:49]}  Qa5 {[%clk 0:00:40]} 28. Rf1 {[%clk 0:00:43]}  Ng6 {[%clk 0:00:36]} 29. Nxg7 {[%clk 0:00:39]}  Kxg7 {[%clk 0:00:35]} 30. Qf3 {[%clk 0:00:39]}  Rf8 {[%clk 0:00:22]} 31. Qf6+ {[%clk 0:00:38]}  Kg8 {[%clk 0:00:22]} 32. Qxc6 {[%clk 0:00:39]}  Qb4 {[%clk 0:00:18]} 33. Bb2 {[%clk 0:00:30]}  Qe7 {[%clk 0:00:18]} 34. Nc3 {[%clk 0:00:25]}  Qe3 {[%clk 0:00:15]} 35. Nxd5 {[%clk 0:00:23]}  Nxd5 {[%clk 0:00:14]} 36. Qxd5 {[%clk 0:00:24]}  Qe2 {[%clk 0:00:14]} 37. Rc1 {[%clk 0:00:20]}  Qg4 {[%clk 0:00:13]} 38. Qxb5 {[%clk 0:00:16]}  Qxh4 {[%clk 0:00:13]} 39. d5 {[%clk 0:00:16]}  Qxg5 {[%clk 0:00:13]} 40. Qc5 {[%clk 0:00:16]}  h4 {[%clk 0:00:13]} 41. Qc3 {[%clk 0:00:16]}  f6 {[%clk 0:00:12]} 42. Qd4 {[%clk 0:00:15]}  Kh7 {[%clk 0:00:10]} 43. Rg1 {[%clk 0:00:15]}  Qh5 {[%clk 0:00:10]} 44. d6 {[%clk 0:00:15]}  h3 {[%clk 0:00:09]} 45. d7 {[%clk 0:00:15]}  h2 {[%clk 0:00:09]} 46. Rh1 {[%clk 0:00:15]}  Rd8 {[%clk 0:00:09]} 47. Qxf6 {[%clk 0:00:14]}  Rxd7 {[%clk 0:00:08]} 48. a4 {[%clk 0:00:10]}  Rd1+ {[%clk 0:00:08]} 49. Rxd1 {[%clk 0:00:10]}  Qxd1+ {[%clk 0:00:09]} 50. Ka2 {[%clk 0:00:09]}  Qd7 {[%clk 0:00:08]} 51. Qf1 {[%clk 0:00:07]}  Qd2 {[%clk 0:00:05]} 52. Qf7+ {[%clk 0:00:07]}  Kh6 {[%clk 0:00:01]} 53. Qg7+ {[%clk 0:00:08]}  Kg5 {[%clk 0:00:01]} 54. Qh7 {[%clk 0:00:07]} 1-0


[Site "https://www.chess.com"]

[Event "Titled Tuesday Blitz April 05 Late 2022"]
[White "Ovetchkin, Roman"]
[Black "Dreev, Aleksey"]
[WhiteFideId "4119991"]
[BlackFideId "4100107"]
[WhiteElo "2409"]
[BlackElo "2625"]
[Result "0-1"]
[Round "07"]
[TimeControl "180+1"]
[Date "2022.04.05"]
[WhiteClock "0:00:04"]
[BlackClock "0:00:50"]

1. d4 {[%clk 0:02:57]}  d5 {[%clk 0:02:59]} 2. c4 {[%clk 0:02:56]}  e6 {[%clk 0:03:00]} 3. Nf3 {[%clk 0:02:56]}  Nf6 {[%clk 0:03:00]} 4. g3 {[%clk 0:02:56]}  dxc4 {[%clk 0:03:01]} 5. Bg2 {[%clk 0:02:55]}  Bb4+ {[%clk 0:03:01]} 6. Bd2 {[%clk 0:02:55]}  a5 {[%clk 0:03:01]} 7. O-O {[%clk 0:02:54]}  O-O {[%clk 0:03:00]} 8. Qc2 {[%clk 0:02:41]}  Bxd2 {[%clk 0:02:54]} 9. Nbxd2 {[%clk 0:02:31]}  b5 {[%clk 0:02:54]} 10. a4 {[%clk 0:02:31]}  c6 {[%clk 0:02:53]} 11. e3 {[%clk 0:02:27]}  Na6 {[%clk 0:02:51]} 12. Ne5 {[%clk 0:02:26]}  Nb4 {[%clk 0:02:51]} 13. Qb1 {[%clk 0:02:24]}  Nfd5 {[%clk 0:02:43]} 14. Ne4 {[%clk 0:01:55]}  f6 {[%clk 0:02:43]} 15. Nf3 {[%clk 0:01:54]}  Qe7 {[%clk 0:02:43]} 16. Nfd2 {[%clk 0:01:36]}  e5 {[%clk 0:02:42]} 17. Nc3 {[%clk 0:01:27]}  exd4 {[%clk 0:02:16]} 18. exd4 {[%clk 0:01:24]}  Be6 {[%clk 0:02:05]} 19. axb5 {[%clk 0:01:12]}  cxb5 {[%clk 0:02:06]} 20. Nxb5 {[%clk 0:01:11]}  Rab8 {[%clk 0:01:54]} 21. Nc3 {[%clk 0:01:10]}  Qc7 {[%clk 0:01:55]} 22. Nxd5 {[%clk 0:00:23]}  Nxd5 {[%clk 0:01:54]} 23. Re1 {[%clk 0:00:18]}  Bf7 {[%clk 0:01:54]} 24. Qa2 {[%clk 0:00:15]}  Nb4 {[%clk 0:01:48]} 25. Qxa5 {[%clk 0:00:14]}  Qxa5 {[%clk 0:01:49]} 26. Rxa5 {[%clk 0:00:14]}  Nd3 {[%clk 0:01:49]} 27. Re7 {[%clk 0:00:14]}  Rxb2 {[%clk 0:01:47]} 28. Ne4 {[%clk 0:00:14]}  Rb1+ {[%clk 0:01:45]} 29. Bf1 {[%clk 0:00:14]}  Re1 {[%clk 0:01:15]} 30. Raa7 {[%clk 0:00:12]}  h5 {[%clk 0:00:58]} 31. Kg2 {[%clk 0:00:10]}  Rxe4 {[%clk 0:00:58]} 32. Rxe4 {[%clk 0:00:09]}  Bd5 {[%clk 0:00:58]} 33. f3 {[%clk 0:00:09]}  Rc8 {[%clk 0:00:57]} 34. Ra1 {[%clk 0:00:05]}  Bxe4 {[%clk 0:00:55]} 35. fxe4 {[%clk 0:00:06]}  Nb4 {[%clk 0:00:50]} 36. Rc1 {[%clk 0:00:05]}  c3 {[%clk 0:00:50]} 37. Kf3 {[%clk 0:00:04]}  c2 {[%clk 0:00:50]} 0-1


[Site "https://www.chess.com"]

[Event "Titled Tuesday Blitz April 05 Late 2022"]
[White "Roman, Rodrigo"]
[Black "Pavlidou, Ekaterini"]
[WhiteFideId "3701220"]
[BlackFideId "4213262"]
[WhiteElo "2001"]
[BlackElo "2127"]
[Result "0-1"]
[Round "07"]
[TimeControl "180+1"]
[Date "2022.04.06"]
[WhiteClock "0:00:15"]
[BlackClock "0:01:11"]

1. e4 {[%clk 0:03:00]}  c5 {[%clk 0:02:59]} 2. c4 {[%clk 0:02:59]}  Nc6 {[%clk 0:02:59]} 3. Nc3 {[%clk 0:03:00]}  g6 {[%clk 0:02:59]} 4. Nge2 {[%clk 0:03:00]}  Bg7 {[%clk 0:03:00]} 5. g3 {[%clk 0:03:00]}  d6 {[%clk 0:03:00]} 6. Bg2 {[%clk 0:03:01]}  h5 {[%clk 0:02:59]} 7. h4 {[%clk 0:03:01]}  Bg4 {[%clk 0:02:57]} 8. f3 {[%clk 0:02:58]}  Be6 {[%clk 0:02:52]} 9. d3 {[%clk 0:02:58]}  Qd7 {[%clk 0:02:52]} 10. Nf4 {[%clk 0:02:57]}  Nh6 {[%clk 0:02:49]} 11. Be3 {[%clk 0:02:51]}  Nd4 {[%clk 0:02:48]} 12. Qd2 {[%clk 0:02:50]}  f5 {[%clk 0:02:46]} 13. Nxe6 {[%clk 0:02:34]}  Qxe6 {[%clk 0:02:43]} 14. Nd5 {[%clk 0:02:34]}  O-O-O {[%clk 0:02:42]} 15. Qa5 {[%clk 0:02:30]}  Kb8 {[%clk 0:02:39]} 16. Qc7+ {[%clk 0:02:21]}  Ka8 {[%clk 0:02:38]} 17. Rc1 {[%clk 0:02:21]}  Rd7 {[%clk 0:02:27]} 18. Qa5 {[%clk 0:02:15]}  Kb8 {[%clk 0:02:27]} 19. Nf4 {[%clk 0:01:45]}  Qf7 {[%clk 0:02:26]} 20. Kf2 {[%clk 0:01:40]}  e5 {[%clk 0:02:18]} 21. Nd5 {[%clk 0:01:37]}  fxe4 {[%clk 0:02:18]} 22. Bxd4 {[%clk 0:01:26]}  exf3 {[%clk 0:02:17]} 23. Bxf3 {[%clk 0:01:11]}  e4 {[%clk 0:02:01]} 24. Bxg7 {[%clk 0:00:58]}  Qxf3+ {[%clk 0:02:01]} 25. Ke1 {[%clk 0:00:58]}  Qxg3+ {[%clk 0:02:00]} 26. Kd1 {[%clk 0:00:50]}  Qf3+ {[%clk 0:01:54]} 27. Kd2 {[%clk 0:00:46]}  Qxd3+ {[%clk 0:01:53]} 28. Ke1 {[%clk 0:00:46]}  Rxg7 {[%clk 0:01:49]} 29. Rf1 {[%clk 0:00:32]}  Nf5 {[%clk 0:01:44]} 30. Qd2 {[%clk 0:00:18]}  Qg3+ {[%clk 0:01:43]} 31. Kd1 {[%clk 0:00:17]}  e3 {[%clk 0:01:40]} 32. Qd3 {[%clk 0:00:13]}  Re8 {[%clk 0:01:38]} 33. Re1 {[%clk 0:00:10]}  e2+ {[%clk 0:01:34]} 34. Kd2 {[%clk 0:00:10]}  Qxd3+ {[%clk 0:01:28]} 35. Kxd3 {[%clk 0:00:10]}  Nd4 {[%clk 0:01:26]} 36. b4 {[%clk 0:00:06]}  Rf7 {[%clk 0:01:26]} 37. bxc5 {[%clk 0:00:06]}  dxc5 {[%clk 0:01:25]} 38. Rg1 {[%clk 0:00:03]}  Rf3+ {[%clk 0:01:23]} 39. Kd2 {[%clk 0:00:03]}  Ra3 {[%clk 0:01:21]} 40. Rge1 {[%clk 0:00:02]}  Nf3+ {[%clk 0:01:18]} 41. Kc2 {[%clk 0:00:03]}  Nxe1+ {[%clk 0:01:16]} 42. Rxe1 {[%clk 0:00:04]}  Rxa2+ {[%clk 0:01:16]} 43. Kd3 {[%clk 0:00:05]}  Ra3+ {[%clk 0:01:15]} 44. Kc2 {[%clk 0:00:05]}  Rf3 {[%clk 0:01:14]} 45. Nc3 {[%clk 0:00:04]}  Rf1 {[%clk 0:01:14]} 46. Rxe2 {[%clk 0:00:05]}  Rxe2+ {[%clk 0:01:12]} 47. Nxe2 {[%clk 0:00:06]}  Rf2 {[%clk 0:01:13]} 48. Kd3 {[%clk 0:00:06]}  Rxe2 {[%clk 0:01:13]} 49. Kxe2 {[%clk 0:00:07]}  a5 {[%clk 0:01:13]} 50. Kd3 {[%clk 0:00:07]}  Kc7 {[%clk 0:01:14]} 51. Ke3 {[%clk 0:00:07]}  Kd6 {[%clk 0:01:14]} 52. Ke4 {[%clk 0:00:08]}  a4 {[%clk 0:01:14]} 53. Kd3 {[%clk 0:00:08]}  Ke5 {[%clk 0:01:13]} 54. Kc3 {[%clk 0:00:09]}  Ke4 {[%clk 0:01:13]} 55. Kb2 {[%clk 0:00:10]}  Kd4 {[%clk 0:01:14]} 56. Ka2 {[%clk 0:00:11]}  Kxc4 {[%clk 0:01:14]} 57. Ka3 {[%clk 0:00:12]}  b5 {[%clk 0:01:14]} 58. Ka2 {[%clk 0:00:12]}  b4 {[%clk 0:01:15]} 59. Kb2 {[%clk 0:00:13]}  b3 {[%clk 0:01:15]} 60. Ka3 {[%clk 0:00:13]}  Kb5 {[%clk 0:01:15]} 61. Kb2 {[%clk 0:00:13]}  Kb4 {[%clk 0:01:16]} 62. Kb1 {[%clk 0:00:13]}  a3 {[%clk 0:01:16]} 63. Ka1 {[%clk 0:00:14]}  c4 {[%clk 0:01:14]} 64. Kb1 {[%clk 0:00:14]}  c3 {[%clk 0:01:14]} 65. Ka1 {[%clk 0:00:15]}  b2+ {[%clk 0:01:13]} 66. Ka2 {[%clk 0:00:16]}  Kc4 {[%clk 0:01:11]} 67. Kxa3 {[%clk 0:00:16]}  b1=Q {[%clk 0:01:10]} 68. Ka4 {[%clk 0:00:15]}  Qb4# {[%clk 0:01:11]} 0-1


[Site "https://www.chess.com"]

[Event "Titled Tuesday Blitz April 05 Late 2022"]
[White "Romero Ruscalleda, Josep"]
[Black "Gomez Dieguez, David"]
[WhiteFideId "2231859"]
[BlackFideId "22223630"]
[WhiteElo "2294"]
[BlackElo "2115"]
[Result "1-0"]
[Round "07"]
[TimeControl "180+1"]
[Date "2022.04.06"]
[WhiteClock "0:00:14"]
[BlackClock "0:00:01"]

1. e4 {[%clk 0:03:00]}  c6 {[%clk 0:02:59]} 2. Nc3 {[%clk 0:03:00]}  d5 {[%clk 0:03:00]} 3. Nf3 {[%clk 0:03:00]}  dxe4 {[%clk 0:03:00]} 4. Nxe4 {[%clk 0:02:59]}  Nf6 {[%clk 0:03:00]} 5. Qe2 {[%clk 0:02:59]}  Nxe4 {[%clk 0:02:58]} 6. Qxe4 {[%clk 0:02:59]}  Nd7 {[%clk 0:02:59]} 7. Bc4 {[%clk 0:02:59]}  Nf6 {[%clk 0:02:59]} 8. Ne5 {[%clk 0:02:59]}  e6 {[%clk 0:02:59]} 9. Qe2 {[%clk 0:02:59]}  b5 {[%clk 0:02:47]} 10. Bb3 {[%clk 0:02:59]}  Qc7 {[%clk 0:02:42]} 11. d4 {[%clk 0:02:58]}  Bd6 {[%clk 0:02:38]} 12. h3 {[%clk 0:02:57]}  a6 {[%clk 0:02:35]} 13. Bf4 {[%clk 0:02:53]}  Bb7 {[%clk 0:02:35]} 14. O-O {[%clk 0:02:51]}  O-O {[%clk 0:02:31]} 15. a4 {[%clk 0:02:48]}  Nd5 {[%clk 0:02:25]} 16. Bg3 {[%clk 0:02:44]}  Rad8 {[%clk 0:02:21]} 17. Bh4 {[%clk 0:02:18]}  f6 {[%clk 0:02:11]} 18. Ng4 {[%clk 0:02:05]}  Rde8 {[%clk 0:02:10]} 19. c4 {[%clk 0:01:58]}  Nf4 {[%clk 0:02:06]} 20. Qd2 {[%clk 0:01:53]}  Ng6 {[%clk 0:01:58]} 21. Bg3 {[%clk 0:01:38]}  Bxg3 {[%clk 0:01:58]} 22. fxg3 {[%clk 0:01:38]}  Qxg3 {[%clk 0:01:58]} 23. c5 {[%clk 0:01:34]}  Kh8 {[%clk 0:01:52]} 24. Rf3 {[%clk 0:01:32]}  Qc7 {[%clk 0:01:37]} 25. Re1 {[%clk 0:01:30]}  Bc8 {[%clk 0:01:36]} 26. Nf2 {[%clk 0:01:15]}  Nh4 {[%clk 0:01:36]} 27. Rfe3 {[%clk 0:01:12]}  Nf5 {[%clk 0:01:26]} 28. R3e2 {[%clk 0:01:03]}  Qd8 {[%clk 0:01:25]} 29. Rd1 {[%clk 0:00:50]}  Qc7 {[%clk 0:00:56]} 30. Ne4 {[%clk 0:00:48]}  e5 {[%clk 0:00:48]} 31. d5 {[%clk 0:00:32]}  cxd5 {[%clk 0:00:47]} 32. Bxd5 {[%clk 0:00:32]}  Nd4 {[%clk 0:00:43]} 33. Rf2 {[%clk 0:00:32]}  Rd8 {[%clk 0:00:33]} 34. Nd6 {[%clk 0:00:20]}  Qxc5 {[%clk 0:00:13]} 35. Nf7+ {[%clk 0:00:20]}  Rxf7 {[%clk 0:00:13]} 36. Bxf7 {[%clk 0:00:21]}  Rf8 {[%clk 0:00:06]} 37. Ba2 {[%clk 0:00:17]}  Bb7 {[%clk 0:00:06]} 38. Kh2 {[%clk 0:00:17]}  Ne6 {[%clk 0:00:03]} 39. Qd7 {[%clk 0:00:15]}  Nf4 {[%clk 0:00:02]} 40. Rxf4 {[%clk 0:00:14]}  exf4 {[%clk 0:00:01]} 41. Qxb7 {[%clk 0:00:14]} 1-0


[Site "https://www.chess.com"]

[Event "Titled Tuesday Blitz April 05 Late 2022"]
[White "Rottenwohrer Suarez, Juan"]
[Black "Soysal, Serkan"]
[WhiteFideId "32068182"]
[BlackFideId "6349250"]
[WhiteElo "2158"]
[BlackElo "2440"]
[Result "0-1"]
[Round "07"]
[TimeControl "180+1"]
[Date "2022.04.06"]
[WhiteClock "0:00:04"]
[BlackClock "0:00:26"]

1. c4 {[%clk 0:03:00]}  g6 {[%clk 0:02:58]} 2. Nf3 {[%clk 0:03:00]}  Bg7 {[%clk 0:02:58]} 3. d4 {[%clk 0:03:00]}  Nf6 {[%clk 0:02:57]} 4. g3 {[%clk 0:03:01]}  O-O {[%clk 0:02:56]} 5. Bg2 {[%clk 0:03:01]}  c6 {[%clk 0:02:57]} 6. O-O {[%clk 0:03:02]}  d5 {[%clk 0:02:57]} 7. cxd5 {[%clk 0:03:02]}  cxd5 {[%clk 0:02:58]} 8. Nc3 {[%clk 0:03:03]}  Ne4 {[%clk 0:02:58]} 9. Ne5 {[%clk 0:03:03]}  Bf5 {[%clk 0:02:57]} 10. Qb3 {[%clk 0:02:51]}  Nc6 {[%clk 0:02:56]} 11. Nxc6 {[%clk 0:02:34]}  bxc6 {[%clk 0:02:55]} 12. Nxe4 {[%clk 0:02:34]}  dxe4 {[%clk 0:02:54]} 13. e3 {[%clk 0:02:31]}  Qd5 {[%clk 0:02:50]} 14. Qc2 {[%clk 0:02:24]}  e5 {[%clk 0:02:37]} 15. dxe5 {[%clk 0:02:18]}  Qxe5 {[%clk 0:02:38]} 16. Rb1 {[%clk 0:02:13]}  Rfd8 {[%clk 0:02:23]} 17. Qxc6 {[%clk 0:01:34]}  Qa5 {[%clk 0:02:00]} 18. a3 {[%clk 0:00:48]}  Rac8 {[%clk 0:01:44]} 19. Qb7 {[%clk 0:00:47]}  Rc7 {[%clk 0:01:25]} 20. Qb3 {[%clk 0:00:44]}  Be6 {[%clk 0:01:24]} 21. Qb4 {[%clk 0:00:43]}  Qxb4 {[%clk 0:01:24]} 22. axb4 {[%clk 0:00:44]}  f5 {[%clk 0:01:22]} 23. f3 {[%clk 0:00:21]}  Bc4 {[%clk 0:01:01]} 24. Re1 {[%clk 0:00:17]}  Bf8 {[%clk 0:00:57]} 25. Bf1 {[%clk 0:00:09]}  Bxb4 {[%clk 0:00:46]} 26. Bxc4+ {[%clk 0:00:09]}  Rxc4 {[%clk 0:00:46]} 27. Rf1 {[%clk 0:00:09]}  exf3 {[%clk 0:00:45]} 28. Rxf3 {[%clk 0:00:10]}  Rc2 {[%clk 0:00:39]} 29. Rf1 {[%clk 0:00:08]}  Bc5 {[%clk 0:00:32]} 30. b3 {[%clk 0:00:07]}  Rd3 {[%clk 0:00:29]} 31. b4 {[%clk 0:00:04]}  Bb6 {[%clk 0:00:26]} 32. Rf2 {[%clk 0:00:03]}  Rd1+ {[%clk 0:00:22]} 33. Rf1 {[%clk 0:00:03]}  Rdxc1 {[%clk 0:00:22]} 34. Rbxc1 {[%clk 0:00:02]}  Rxc1 {[%clk 0:00:23]} 35. Rxc1 {[%clk 0:00:02]}  Bxe3+ {[%clk 0:00:23]} 36. Kf1 {[%clk 0:00:03]}  Bxc1 {[%clk 0:00:24]} 37. Ke2 {[%clk 0:00:03]}  Ba3 {[%clk 0:00:23]} 38. b5 {[%clk 0:00:03]}  Bc5 {[%clk 0:00:24]} 39. h3 {[%clk 0:00:03]}  Bb6 {[%clk 0:00:25]} 40. g4 {[%clk 0:00:03]}  fxg4 {[%clk 0:00:25]} 41. hxg4 {[%clk 0:00:04]}  Kf7 {[%clk 0:00:26]} 0-1


[Site "https://www.chess.com"]

[Event "Titled Tuesday Blitz April 05 Late 2022"]
[White "Sadovsky, Artem"]
[Black "Ricaurte Lopez, Juan Carlos"]
[WhiteFideId "4155840"]
[BlackFideId "3600327"]
[WhiteElo "2314"]
[BlackElo "2209"]
[Result "1-0"]
[Round "07"]
[TimeControl "180+1"]
[Date "2022.04.06"]
[WhiteClock "0:01:55"]
[BlackClock "0:00:01"]

1. d4 {[%clk 0:03:00]}  Nf6 {[%clk 0:02:57]} 2. c3 {[%clk 0:03:00]}  d6 {[%clk 0:02:52]} 3. h3 {[%clk 0:03:01]}  Nbd7 {[%clk 0:02:51]} 4. Bf4 {[%clk 0:03:02]}  e5 {[%clk 0:02:50]} 5. Bh2 {[%clk 0:03:03]}  g6 {[%clk 0:02:43]} 6. e3 {[%clk 0:03:04]}  Bg7 {[%clk 0:02:41]} 7. Nf3 {[%clk 0:03:03]}  Qe7 {[%clk 0:02:40]} 8. Bc4 {[%clk 0:03:03]}  c6 {[%clk 0:02:37]} 9. dxe5 {[%clk 0:02:54]}  dxe5 {[%clk 0:02:35]} 10. a4 {[%clk 0:02:49]}  O-O {[%clk 0:02:32]} 11. O-O {[%clk 0:02:48]}  Rd8 {[%clk 0:02:20]} 12. Ng5 {[%clk 0:02:36]}  Nd5 {[%clk 0:02:02]} 13. Nxf7 {[%clk 0:02:29]}  Qxf7 {[%clk 0:01:56]} 14. e4 {[%clk 0:02:29]}  N7b6 {[%clk 0:01:55]} 15. Bb3 {[%clk 0:02:28]}  Be6 {[%clk 0:01:53]} 16. exd5 {[%clk 0:02:28]}  Nxd5 {[%clk 0:01:47]} 17. Bxd5 {[%clk 0:02:29]}  Rxd5 {[%clk 0:01:43]} 18. Qe2 {[%clk 0:02:28]}  Rad8 {[%clk 0:01:41]} 19. a5 {[%clk 0:02:20]}  Bf5 {[%clk 0:01:33]} 20. Re1 {[%clk 0:02:19]}  Bh6 {[%clk 0:00:51]} 21. Bxe5 {[%clk 0:02:12]}  Bd3 {[%clk 0:00:33]} 22. Qg4 {[%clk 0:02:05]}  Re8 {[%clk 0:00:27]} 23. f4 {[%clk 0:02:03]}  Bf5 {[%clk 0:00:21]} 24. Qg3 {[%clk 0:02:01]}  Rd3 {[%clk 0:00:20]} 25. Qf2 {[%clk 0:02:00]}  Qd5 {[%clk 0:00:17]} 26. g4 {[%clk 0:01:57]}  Be4 {[%clk 0:00:16]} 27. c4 {[%clk 0:01:54]}  Qxc4 {[%clk 0:00:15]} 28. Nd2 {[%clk 0:01:55]}  Rxd2 {[%clk 0:00:13]} 29. Qxd2 {[%clk 0:01:56]}  Rxe5 {[%clk 0:00:10]} 30. Qd8+ {[%clk 0:01:56]}  Kf7 {[%clk 0:00:09]} 31. fxe5 {[%clk 0:01:55]}  Qc5+ {[%clk 0:00:08]} 32. Kf1 {[%clk 0:01:55]}  Qc4+ {[%clk 0:00:07]} 33. Re2 {[%clk 0:01:55]}  Bg2+ {[%clk 0:00:06]} 34. Kf2 {[%clk 0:01:54]}  Bd5 {[%clk 0:00:01]} 35. Qf6+ {[%clk 0:01:55]} 1-0


[Site "https://www.chess.com"]